[Event "Late-Titled-Tuesday-Blitz-April-30-2024"]
[Site "Chess.com"]
[Date "2024.04.30"]
[Round "6"]
[White "rdarruda"]
[Black "schachlana"]
[Result "1-0"]
[WhiteElo "2546"]
[BlackElo "2368"]
[TimeControl "180+1"]
[EndTime "15:04:16 PDT"]
[Termination "rdarruda won by resignation"]

1. d4 {[%clk 0:03:00.9]} 1... Nf6 {[%clk 0:02:53.7]} 2. Nf3 {[%clk 0:02:59.6]}
2... g6 {[%clk 0:02:54.3]} 3. Nc3 {[%clk 0:02:58.9]} 3... c5 {[%clk 0:02:50]} 4.
d5 {[%clk 0:02:58.4]} 4... Bg7 {[%clk 0:02:49.9]} 5. e4 {[%clk 0:02:58.8]} 5...
d6 {[%clk 0:02:49.7]} 6. Be2 {[%clk 0:02:58]} 6... O-O {[%clk 0:02:50.2]} 7. O-O
{[%clk 0:02:58.1]} 7... a6 {[%clk 0:02:50.6]} 8. a4 {[%clk 0:02:57.6]} 8... Nbd7
{[%clk 0:02:42.7]} 9. Nd2 {[%clk 0:02:56.6]} 9... Rb8 {[%clk 0:02:42.1]} 10. Nc4
{[%clk 0:02:55.6]} 10... b5 {[%clk 0:02:41.7]} 11. axb5 {[%clk 0:02:55.7]} 11...
axb5 {[%clk 0:02:42.6]} 12. Na5 {[%clk 0:02:55.9]} 12... Qb6 {[%clk 0:02:09.9]}
13. Nc6 {[%clk 0:02:53.9]} 13... b4 {[%clk 0:02:07.2]} 14. Na4 {[%clk
0:02:48.5]} 14... Qc7 {[%clk 0:02:03.3]} 15. Nxb8 {[%clk 0:02:48.3]} 15... Nxb8
{[%clk 0:02:04.2]} 16. f3 {[%clk 0:02:45.8]} 16... c4 {[%clk 0:01:56.5]} 17. c3
{[%clk 0:02:39.3]} 17... b3 {[%clk 0:01:48.3]} 18. Be3 {[%clk 0:02:37.4]} 18...
Nfd7 {[%clk 0:01:45.4]} 19. Bd4 {[%clk 0:02:34]} 19... Ne5 {[%clk 0:01:40.6]}
20. f4 {[%clk 0:02:31]} 20... Ned7 {[%clk 0:01:15.6]} 21. Bxg7 {[%clk
0:02:30.3]} 21... Kxg7 {[%clk 0:01:16.5]} 22. Qd4+ {[%clk 0:02:30.1]} 22... Nf6
{[%clk 0:01:09.5]} 23. e5 {[%clk 0:02:23]} 23... dxe5 {[%clk 0:00:39.6]} 24.
fxe5 {[%clk 0:02:23.9]} 24... Ne8 {[%clk 0:00:31.7]} 25. d6 {[%clk 0:02:19.1]}
25... Qb7 {[%clk 0:00:15.6]} 26. e6+ {[%clk 0:02:15.7]} 26... f6 {[%clk
0:00:12.3]} 27. d7 {[%clk 0:02:15.5]} 27... Nxd7 {[%clk 0:00:12.6]} 28. exd7
{[%clk 0:02:15.5]} 28... Bxd7 {[%clk 0:00:13.5]} 29. Nc5 {[%clk 0:02:14.9]} 1-0

[Event "Late-Titled-Tuesday-Blitz-April-30-2024"]
[Site "Chess.com"]
[Date "2024.04.30"]
[Round "6"]
[White "LuciaMalanRamos"]
[Black "RealPerangel"]
[Result "0-1"]
[WhiteElo "2111"]
[BlackElo "2745"]
[TimeControl "180+1"]
[EndTime "15:04:45 PDT"]
[Termination "RealPerangel won by resignation"]

1. d4 {[%clk 0:02:59.7]} 1... c5 {[%clk 0:02:45.9]} 2. d5 {[%clk 0:02:59.2]}
2... Nf6 {[%clk 0:02:46.3]} 3. c4 {[%clk 0:02:57.8]} 3... g6 {[%clk 0:02:46.2]}
4. Nc3 {[%clk 0:02:57.1]} 4... Bg7 {[%clk 0:02:47.1]} 5. e4 {[%clk 0:02:57.4]}
5... O-O {[%clk 0:02:47.3]} 6. Nf3 {[%clk 0:02:57.2]} 6... d6 {[%clk 0:02:47.7]}
7. Bd3 {[%clk 0:02:57.4]} 7... e6 {[%clk 0:02:48.1]} 8. Bg5 {[%clk 0:02:56.1]}
8... h6 {[%clk 0:02:47.7]} 9. Bh4 {[%clk 0:02:54.1]} 9... g5 {[%clk 0:02:47.1]}
10. Bg3 {[%clk 0:02:54.6]} 10... e5 {[%clk 0:02:47.5]} 11. Qc2 {[%clk
0:02:45.7]} 11... Nh5 {[%clk 0:02:47]} 12. O-O {[%clk 0:02:40.7]} 12... Nf4
{[%clk 0:02:45.1]} 13. h3 {[%clk 0:02:29.1]} 13... Qf6 {[%clk 0:02:43.2]} 14.
Bxf4 {[%clk 0:02:25.7]} 14... exf4 {[%clk 0:02:42.1]} 15. Rfe1 {[%clk
0:02:21.6]} 15... Nd7 {[%clk 0:02:42]} 16. Re2 {[%clk 0:02:16.7]} 16... Qe7
{[%clk 0:02:38.3]} 17. Rae1 {[%clk 0:02:15.2]} 17... Ne5 {[%clk 0:02:38.4]} 18.
Nxe5 {[%clk 0:02:08.1]} 18... Bxe5 {[%clk 0:02:39.3]} 19. Nb5 {[%clk 0:02:07.9]}
19... a6 {[%clk 0:02:38.2]} 20. Na3 {[%clk 0:01:54.9]} 20... h5 {[%clk
0:02:38.1]} 21. Nb1 {[%clk 0:01:54]} 21... g4 {[%clk 0:02:38.1]} 22. hxg4 {[%clk
0:01:52.1]} 22... hxg4 {[%clk 0:02:39]} 23. g3 {[%clk 0:01:30.1]} 23... f3
{[%clk 0:02:38.3]} 24. Re3 {[%clk 0:01:29.5]} 24... Kg7 {[%clk 0:02:38]} 25. Be2
{[%clk 0:01:21.5]} 25... fxe2 {[%clk 0:02:37.1]} 26. Qxe2 {[%clk 0:01:13.7]}
26... Rh8 {[%clk 0:02:36.9]} 27. Qf1 {[%clk 0:01:12.4]} 27... Qg5 {[%clk
0:02:36.1]} 28. b3 {[%clk 0:01:04.5]} 28... Bd7 {[%clk 0:02:35.6]} 29. Qg2
{[%clk 0:01:03.7]} 29... Rh6 {[%clk 0:02:35.4]} 30. Kf1 {[%clk 0:01:02.3]} 30...
Rah8 {[%clk 0:02:35]} 31. Ke2 {[%clk 0:00:56.4]} 31... Rh2 {[%clk 0:02:35]} 32.
Qg1 {[%clk 0:00:55.3]} 32... Bd4 {[%clk 0:02:34.7]} 33. Kd3 {[%clk 0:00:45.4]}
33... b5 {[%clk 0:02:33.8]} 34. Nd2 {[%clk 0:00:40.4]} 34... Qe5 {[%clk
0:02:30.1]} 35. f4 {[%clk 0:00:27.3]} 35... Qf6 {[%clk 0:02:22.9]} 36. Qf1
{[%clk 0:00:20.3]} 36... Bxe3 {[%clk 0:02:19.1]} 37. Rxe3 {[%clk 0:00:16.9]}
37... Qd4+ {[%clk 0:02:16.6]} 38. Kc2 {[%clk 0:00:17.2]} 0-1

[Event "Late-Titled-Tuesday-Blitz-April-30-2024"]
[Site "Chess.com"]
[Date "2024.04.30"]
[Round "6"]
[White "scandalgod"]
[Black "FREZZY23"]
[Result "1-0"]
[WhiteElo "2492"]
[BlackElo "2362"]
[TimeControl "180+1"]
[EndTime "15:05:05 PDT"]
[Termination "scandalgod won by resignation"]

1. d4 {[%clk 0:02:58.7]} 1... Nf6 {[%clk 0:03:00]} 2. c4 {[%clk 0:02:58.4]} 2...
g6 {[%clk 0:03:00.1]} 3. Nc3 {[%clk 0:02:57.7]} 3... Bg7 {[%clk 0:03:00]} 4. e4
{[%clk 0:02:58.2]} 4... d6 {[%clk 0:02:58.7]} 5. f4 {[%clk 0:02:58.8]} 5... O-O
{[%clk 0:02:55.2]} 6. Nf3 {[%clk 0:02:59]} 6... c5 {[%clk 0:02:55.2]} 7. d5
{[%clk 0:02:57.3]} 7... e6 {[%clk 0:02:55]} 8. Be2 {[%clk 0:02:57.1]} 8... exd5
{[%clk 0:02:55]} 9. cxd5 {[%clk 0:02:58]} 9... Re8 {[%clk 0:02:55.1]} 10. e5
{[%clk 0:02:58]} 10... dxe5 {[%clk 0:02:55.6]} 11. fxe5 {[%clk 0:02:58.9]} 11...
Ng4 {[%clk 0:02:56.3]} 12. Bg5 {[%clk 0:02:58.6]} 12... Qb6 {[%clk 0:02:54.9]}
13. O-O {[%clk 0:02:58.6]} 13... Nxe5 {[%clk 0:02:51.7]} 14. d6 {[%clk
0:02:56.5]} 14... Nbc6 {[%clk 0:02:49.8]} 15. Nd5 {[%clk 0:02:54]} 15... Qxb2
{[%clk 0:02:45.8]} 16. Rb1 {[%clk 0:02:46.5]} 16... Nxf3+ {[%clk 0:02:44.9]} 17.
Bxf3 {[%clk 0:02:44.8]} 17... Qd4+ {[%clk 0:02:45.2]} 18. Kh1 {[%clk 0:02:42.2]}
18... Qxd1 {[%clk 0:02:32.5]} 19. Rfxd1 {[%clk 0:02:18.5]} 19... Re5 {[%clk
0:02:16.3]} 20. Bh4 {[%clk 0:02:14.8]} 20... Bf5 {[%clk 0:02:07.1]} 21. Rxb7
{[%clk 0:02:11.3]} 21... Nd4 {[%clk 0:02:01.6]} 22. d7 {[%clk 0:02:05.7]} 22...
Nxf3 {[%clk 0:01:50.4]} 23. gxf3 {[%clk 0:02:01.3]} 23... g5 {[%clk 0:01:50.7]}
24. Ne7+ {[%clk 0:01:20.4]} 24... Rxe7 {[%clk 0:01:38.2]} 25. d8=Q+ {[%clk
0:01:19.1]} 25... Rxd8 {[%clk 0:01:37.3]} 26. Rxd8+ {[%clk 0:01:18.7]} 26... Bf8
{[%clk 0:01:32.3]} 27. Rxe7 {[%clk 0:01:17.6]} 27... Kg7 {[%clk 0:01:31.9]} 28.
Bxg5 {[%clk 0:01:12.5]} 28... Bxe7 {[%clk 0:01:31.1]} 29. Bxe7 {[%clk 0:01:12]}
29... c4 {[%clk 0:01:30.8]} 30. Bb4 {[%clk 0:01:07.2]} 30... Be6 {[%clk
0:01:30.5]} 31. Bc3+ {[%clk 0:01:07]} 31... Kg6 {[%clk 0:01:30.1]} 32. Kg2
{[%clk 0:01:06.9]} 32... Kf5 {[%clk 0:01:27.7]} 33. Kg3 {[%clk 0:01:07.1]} 33...
h5 {[%clk 0:01:27.8]} 34. Ra8 {[%clk 0:01:06]} 34... h4+ {[%clk 0:01:26.1]} 35.
Kxh4 {[%clk 0:01:04.3]} 35... Kf4 {[%clk 0:01:27]} 36. Rxa7 {[%clk 0:01:00.9]}
36... Kxf3 {[%clk 0:01:27]} 37. Kg5 {[%clk 0:01:01]} 37... f5 {[%clk 0:01:22.3]}
38. h4 {[%clk 0:00:59.1]} 38... Ke4 {[%clk 0:01:21.7]} 39. h5 {[%clk 0:00:58.9]}
39... f4 {[%clk 0:01:21.3]} 40. Re7 {[%clk 0:00:53.9]} 1-0

[Event "Late-Titled-Tuesday-Blitz-April-30-2024"]
[Site "Chess.com"]
[Date "2024.04.30"]
[Round "6"]
[White "Hikaru"]
[Black "CarrotsandPizza"]
[Result "1-0"]
[WhiteElo "3200"]
[BlackElo "2596"]
[TimeControl "180+1"]
[EndTime "15:05:07 PDT"]
[Termination "Hikaru won by checkmate"]

1. h4 {[%clk 0:02:58.7]} 1... e5 {[%clk 0:02:58.2]} 2. c4 {[%clk 0:02:56.7]}
2... Nf6 {[%clk 0:02:56]} 3. g3 {[%clk 0:02:55.3]} 3... c6 {[%clk 0:02:45.9]} 4.
Nf3 {[%clk 0:02:54.8]} 4... e4 {[%clk 0:02:44.3]} 5. Nd4 {[%clk 0:02:54.9]} 5...
Ng4 {[%clk 0:02:35.8]} 6. e3 {[%clk 0:02:52.4]} 6... Ne5 {[%clk 0:02:33.7]} 7.
f4 {[%clk 0:02:46.2]} 7... exf3 {[%clk 0:02:25.4]} 8. Nxf3 {[%clk 0:02:46.5]}
8... Bd6 {[%clk 0:02:16.4]} 9. Nxe5 {[%clk 0:02:39.9]} 9... Bxe5 {[%clk
0:02:16.2]} 10. Qf3 {[%clk 0:02:40.6]} 10... Qc7 {[%clk 0:02:13.6]} 11. Rg1
{[%clk 0:02:40.2]} 11... O-O {[%clk 0:02:13.2]} 12. d4 {[%clk 0:02:40.4]} 12...
Bf6 {[%clk 0:02:09.4]} 13. Nc3 {[%clk 0:02:40.4]} 13... Re8 {[%clk 0:02:08.7]}
14. Be2 {[%clk 0:02:35.1]} 14... a6 {[%clk 0:01:37.5]} 15. Bd2 {[%clk
0:02:29.4]} 15... b5 {[%clk 0:01:37.6]} 16. Ne4 {[%clk 0:02:28.9]} 16... Be7
{[%clk 0:01:36.8]} 17. Rf1 {[%clk 0:02:26.9]} 17... Rf8 {[%clk 0:01:33.6]} 18.
c5 {[%clk 0:02:27.2]} 18... d5 {[%clk 0:01:32.5]} 19. cxd6 {[%clk 0:02:27.3]}
19... Bxd6 {[%clk 0:01:32.7]} 20. Nxd6 {[%clk 0:02:26.2]} 20... Qxd6 {[%clk
0:01:33.1]} 21. Qf4 {[%clk 0:02:27]} 21... Qe7 {[%clk 0:01:21.2]} 22. Rc1 {[%clk
0:02:26.5]} 22... Bb7 {[%clk 0:01:18.3]} 23. Bd3 {[%clk 0:02:20.2]} 23... Nd7
{[%clk 0:01:16.5]} 24. Qe4 {[%clk 0:02:20.2]} 24... Qxe4 {[%clk 0:01:15.3]} 25.
Bxe4 {[%clk 0:02:21.1]} 25... Rac8 {[%clk 0:01:12.5]} 26. Bf5 {[%clk 0:02:21.4]}
26... Nf6 {[%clk 0:00:58.7]} 27. Bxc8 {[%clk 0:02:19.9]} 27... Rxc8 {[%clk
0:00:58.9]} 28. Rf4 {[%clk 0:02:16.2]} 28... Re8 {[%clk 0:00:50.5]} 29. Ke2
{[%clk 0:02:13]} 29... Nd5 {[%clk 0:00:47.7]} 30. Rff1 {[%clk 0:02:11.6]} 30...
f6 {[%clk 0:00:47.6]} 31. Kd3 {[%clk 0:02:09.1]} 31... Rd8 {[%clk 0:00:35]} 32.
e4 {[%clk 0:02:08.6]} 32... Ne7 {[%clk 0:00:34.9]} 33. Bb4 {[%clk 0:02:04.8]}
33... Nc8 {[%clk 0:00:20.8]} 34. Bc5 {[%clk 0:02:04.4]} 34... Rd7 {[%clk
0:00:21.2]} 35. e5 {[%clk 0:02:03.3]} 35... Rf7 {[%clk 0:00:13.2]} 36. exf6
{[%clk 0:02:03.1]} 36... gxf6 {[%clk 0:00:12.8]} 37. Rce1 {[%clk 0:02:03.5]}
37... Rc7 {[%clk 0:00:07.6]} 38. Re8+ {[%clk 0:02:03.1]} 38... Kf7 {[%clk
0:00:07.7]} 39. Rf8+ {[%clk 0:02:02.9]} 39... Kg7 {[%clk 0:00:08.4]} 40. R1xf6
{[%clk 0:02:03]} 40... a5 {[%clk 0:00:02.3]} 41. h5 {[%clk 0:02:03.1]} 41... Rd7
{[%clk 0:00:02.6]} 42. h6# {[%clk 0:02:03.3]} 1-0

[Event "Late-Titled-Tuesday-Blitz-April-30-2024"]
[Site "Chess.com"]
[Date "2024.04.30"]
[Round "6"]
[White "kylelancman"]
[Black "dasatcu90"]
[Result "1-0"]
[WhiteElo "2511"]
[BlackElo "2230"]
[TimeControl "180+1"]
[EndTime "15:05:12 PDT"]
[Termination "kylelancman won by resignation"]

1. e4 {[%clk 0:03:00.9]} 1... c6 {[%clk 0:02:56]} 2. Nf3 {[%clk 0:02:58.9]} 2...
d5 {[%clk 0:02:54.5]} 3. Nc3 {[%clk 0:02:59]} 3... Bg4 {[%clk 0:02:52.6]} 4. h3
{[%clk 0:02:58.9]} 4... Bxf3 {[%clk 0:02:52.8]} 5. Qxf3 {[%clk 0:02:59.8]} 5...
e6 {[%clk 0:02:53.4]} 6. Be2 {[%clk 0:02:59.4]} 6... Nf6 {[%clk 0:02:50.7]} 7.
O-O {[%clk 0:02:58.7]} 7... Nbd7 {[%clk 0:02:50.6]} 8. d4 {[%clk 0:02:58.1]}
8... dxe4 {[%clk 0:02:50.3]} 9. Nxe4 {[%clk 0:02:59]} 9... Nxe4 {[%clk 0:02:50]}
10. Qxe4 {[%clk 0:02:59.9]} 10... Bd6 {[%clk 0:02:50]} 11. c4 {[%clk 0:02:58]}
11... O-O {[%clk 0:02:49.5]} 12. Bd3 {[%clk 0:02:55.4]} 12... Nf6 {[%clk
0:02:49]} 13. Qh4 {[%clk 0:02:55.7]} 13... Re8 {[%clk 0:02:42.2]} 14. Bg5 {[%clk
0:02:51.4]} 14... h6 {[%clk 0:02:41]} 15. Bxf6 {[%clk 0:02:49.8]} 15... Qxf6
{[%clk 0:02:40.6]} 16. Qxf6 {[%clk 0:02:50.3]} 16... gxf6 {[%clk 0:02:41.4]} 17.
Rad1 {[%clk 0:02:48.5]} 17... Rad8 {[%clk 0:02:40.4]} 18. Be4 {[%clk 0:02:48.2]}
18... f5 {[%clk 0:02:40.2]} 19. Bf3 {[%clk 0:02:48.2]} 19... Kg7 {[%clk
0:02:16.4]} 20. b3 {[%clk 0:02:43.8]} 20... Be7 {[%clk 0:02:08.6]} 21. Rd2
{[%clk 0:02:40.6]} 21... Bg5 {[%clk 0:02:07.2]} 22. Rdd1 {[%clk 0:02:36.1]}
22... Rd6 {[%clk 0:02:02.8]} 23. d5 {[%clk 0:02:10.2]} 23... cxd5 {[%clk
0:02:02.3]} 24. cxd5 {[%clk 0:02:09.5]} 24... e5 {[%clk 0:02:02.8]} 25. Be2
{[%clk 0:02:06.7]} 25... a6 {[%clk 0:01:59.9]} 26. a4 {[%clk 0:02:06.1]} 26...
e4 {[%clk 0:01:51.2]} 27. Bc4 {[%clk 0:02:01.9]} 27... f4 {[%clk 0:01:44.9]} 28.
Rfe1 {[%clk 0:01:55.9]} 28... e3 {[%clk 0:01:43]} 29. fxe3 {[%clk 0:01:53.6]}
29... fxe3 {[%clk 0:01:43.9]} 30. g3 {[%clk 0:01:52.7]} 30... f5 {[%clk
0:01:36]} 31. h4 {[%clk 0:01:51.5]} 31... Bd8 {[%clk 0:01:25.6]} 32. Kg2 {[%clk
0:01:49.6]} 32... a5 {[%clk 0:01:12.8]} 33. Kf3 {[%clk 0:01:40.8]} 33... Kf6
{[%clk 0:01:11.3]} 34. Rxe3 {[%clk 0:01:38.5]} 34... Rxe3+ {[%clk 0:01:09.6]}
35. Kxe3 {[%clk 0:01:39.4]} 35... Ke5 {[%clk 0:01:01.7]} 36. Re1 {[%clk
0:01:38]} 36... Kf6 {[%clk 0:00:46]} 37. Kf4 {[%clk 0:01:35.4]} 37... Bc7 {[%clk
0:00:44.7]} 38. Kf3 {[%clk 0:01:31]} 38... Bb6 {[%clk 0:00:39]} 39. Re8 {[%clk
0:01:28.8]} 39... Rd7 {[%clk 0:00:34.9]} 40. Re6+ {[%clk 0:01:26]} 1-0

[Event "Late-Titled-Tuesday-Blitz-April-30-2024"]
[Site "Chess.com"]
[Date "2024.04.30"]
[Round "6"]
[White "MarkoPe"]
[Black "youngdinousaur"]
[Result "1-0"]
[WhiteElo "2442"]
[BlackElo "2243"]
[TimeControl "180+1"]
[EndTime "15:05:20 PDT"]
[Termination "MarkoPe won by resignation"]

1. d4 {[%clk 0:02:59.9]} 1... Nf6 {[%clk 0:02:59.2]} 2. g3 {[%clk 0:02:58.6]}
2... e6 {[%clk 0:03:00]} 3. Bg2 {[%clk 0:02:58.8]} 3... d5 {[%clk 0:03:00.3]} 4.
Nf3 {[%clk 0:02:59.4]} 4... Be7 {[%clk 0:03:00.9]} 5. O-O {[%clk 0:03:00.3]}
5... O-O {[%clk 0:03:00.8]} 6. c4 {[%clk 0:03:01.2]} 6... dxc4 {[%clk
0:02:59.4]} 7. Qa4 {[%clk 0:02:56.9]} 7... a6 {[%clk 0:02:58.5]} 8. Qxc4 {[%clk
0:02:56.9]} 8... b5 {[%clk 0:02:58.2]} 9. Qc2 {[%clk 0:02:57.5]} 9... Bb7 {[%clk
0:02:58.7]} 10. Nc3 {[%clk 0:02:55.2]} 10... c5 {[%clk 0:02:55.9]} 11. dxc5
{[%clk 0:02:52]} 11... Bxc5 {[%clk 0:02:56.8]} 12. Rd1 {[%clk 0:02:52.5]} 12...
Qb6 {[%clk 0:02:55]} 13. e4 {[%clk 0:02:36.3]} 13... Nc6 {[%clk 0:02:49.7]} 14.
e5 {[%clk 0:02:28.2]} 14... Nb4 {[%clk 0:02:42.7]} 15. Qe2 {[%clk 0:02:17.6]}
15... Nfd5 {[%clk 0:02:41.4]} 16. Ne4 {[%clk 0:02:12.9]} 16... Be7 {[%clk
0:02:33.7]} 17. Bg5 {[%clk 0:02:00.8]} 17... Bxg5 {[%clk 0:02:25.4]} 18. Nfxg5
{[%clk 0:01:59.7]} 18... h6 {[%clk 0:02:24.7]} 19. Qh5 {[%clk 0:01:45.5]} 19...
Rac8 {[%clk 0:01:48.6]} 20. Nf6+ {[%clk 0:01:04.3]} 20... Nxf6 {[%clk
0:01:43.2]} 21. exf6 {[%clk 0:01:03.3]} 21... Bxg2 {[%clk 0:01:30.6]} 22. Kxg2
{[%clk 0:00:54.9]} 22... hxg5 {[%clk 0:01:29.5]} 23. Qxg5 {[%clk 0:00:52.3]}
23... Qc6+ {[%clk 0:00:53]} 24. Kg1 {[%clk 0:00:51.2]} 24... g6 {[%clk
0:00:43.3]} 25. Qh6 {[%clk 0:00:48.6]} 1-0

[Event "Late-Titled-Tuesday-Blitz-April-30-2024"]
[Site "Chess.com"]
[Date "2024.04.30"]
[Round "6"]
[White "MuhittinBuker"]
[Black "olakenn"]
[Result "1-0"]
[WhiteElo "2165"]
[BlackElo "1913"]
[TimeControl "180+1"]
[EndTime "15:05:20 PDT"]
[Termination "MuhittinBuker won by checkmate"]

1. d4 {[%clk 0:02:59.4]} 1... Nf6 {[%clk 0:02:59.7]} 2. c4 {[%clk 0:02:57.9]}
2... g6 {[%clk 0:02:59.9]} 3. Nc3 {[%clk 0:02:57.3]} 3... d5 {[%clk 0:02:59.9]}
4. cxd5 {[%clk 0:02:55.2]} 4... Nxd5 {[%clk 0:03:00]} 5. e4 {[%clk 0:02:55.5]}
5... Nxc3 {[%clk 0:03:00.3]} 6. bxc3 {[%clk 0:02:56.2]} 6... Bg7 {[%clk
0:03:00.2]} 7. Nf3 {[%clk 0:02:55.2]} 7... c5 {[%clk 0:03:00.1]} 8. Bb5+ {[%clk
0:02:55.2]} 8... Bd7 {[%clk 0:02:59.6]} 9. Bxd7+ {[%clk 0:02:47.2]} 9... Nxd7
{[%clk 0:02:58.9]} 10. O-O {[%clk 0:02:47.1]} 10... O-O {[%clk 0:02:51.6]} 11.
Be3 {[%clk 0:02:46.9]} 11... cxd4 {[%clk 0:02:50]} 12. cxd4 {[%clk 0:02:46.3]}
12... Nb6 {[%clk 0:02:48.7]} 13. Qd3 {[%clk 0:02:44.2]} 13... Rc8 {[%clk
0:02:47.6]} 14. Rac1 {[%clk 0:02:43.2]} 14... Qd7 {[%clk 0:02:43.9]} 15. h3
{[%clk 0:02:35.5]} 15... Rxc1 {[%clk 0:02:42.3]} 16. Rxc1 {[%clk 0:02:34.9]}
16... Rc8 {[%clk 0:02:42.3]} 17. Rxc8+ {[%clk 0:02:35]} 17... Qxc8 {[%clk
0:02:41.2]} 18. d5 {[%clk 0:02:31.1]} 18... h6 {[%clk 0:01:36.8]} 19. Bxb6
{[%clk 0:02:29.5]} 19... axb6 {[%clk 0:01:36.5]} 20. a4 {[%clk 0:02:29.6]} 20...
Qc5 {[%clk 0:01:29.8]} 21. g3 {[%clk 0:02:22.7]} 21... Kf8 {[%clk 0:01:27.1]}
22. Kg2 {[%clk 0:02:22]} 22... Ke8 {[%clk 0:01:25.6]} 23. e5 {[%clk 0:02:18.8]}
23... Bf8 {[%clk 0:00:53]} 24. e6 {[%clk 0:02:15.8]} 24... Qd6 {[%clk
0:00:43.3]} 25. Qb5+ {[%clk 0:02:08.5]} 25... Kd8 {[%clk 0:00:40.4]} 26. Ne5
{[%clk 0:02:01.3]} 26... Kc8 {[%clk 0:00:15.6]} 27. Nxf7 {[%clk 0:01:22.2]}
27... Qc5 {[%clk 0:00:07.4]} 28. Qe8+ {[%clk 0:01:21.3]} 28... Kc7 {[%clk
0:00:06.5]} 29. Qd8# {[%clk 0:01:21.7]} 1-0

[Event "Late-Titled-Tuesday-Blitz-April-30-2024"]
[Site "Chess.com"]
[Date "2024.04.30"]
[Round "6"]
[White "Cacriefils1984"]
[Black "dosto07"]
[Result "0-1"]
[WhiteElo "2358"]
[BlackElo "2510"]
[TimeControl "180+1"]
[EndTime "15:05:25 PDT"]
[Termination "dosto07 won by resignation"]

1. e4 {[%clk 0:03:00.9]} 1... e5 {[%clk 0:02:59.7]} 2. Nf3 {[%clk 0:03:00]} 2...
Nc6 {[%clk 0:03:00.3]} 3. Bc4 {[%clk 0:02:59.9]} 3... Bc5 {[%clk 0:02:59.9]} 4.
b4 {[%clk 0:02:59.3]} 4... Bb6 {[%clk 0:02:59.7]} 5. a4 {[%clk 0:02:58.3]} 5...
a6 {[%clk 0:02:59.5]} 6. Nc3 {[%clk 0:02:54.6]} 6... Nf6 {[%clk 0:02:57.8]} 7.
Nd5 {[%clk 0:02:43.5]} 7... d6 {[%clk 0:02:56.9]} 8. Nxb6 {[%clk 0:02:35.3]}
8... cxb6 {[%clk 0:02:57.2]} 9. d3 {[%clk 0:02:32.3]} 9... Be6 {[%clk 0:02:57]}
10. b5 {[%clk 0:02:06]} 10... Bxc4 {[%clk 0:02:29.1]} 11. dxc4 {[%clk
0:02:02.1]} 11... Na5 {[%clk 0:02:15.4]} 12. Qd3 {[%clk 0:02:00.8]} 12... Rc8
{[%clk 0:02:11.1]} 13. Nd2 {[%clk 0:02:00.3]} 13... Qc7 {[%clk 0:02:05.5]} 14.
O-O {[%clk 0:01:48.1]} 14... O-O {[%clk 0:02:01.4]} 15. Ba3 {[%clk 0:01:47.2]}
15... Rfd8 {[%clk 0:02:00.3]} 16. Rfd1 {[%clk 0:01:26.9]} 16... Nxc4 {[%clk
0:01:58.5]} 17. Nxc4 {[%clk 0:01:22.8]} 17... Qxc4 {[%clk 0:01:58.8]} 18. Qxc4
{[%clk 0:01:20]} 18... Rxc4 {[%clk 0:01:58.8]} 19. Bxd6 {[%clk 0:01:19.3]} 19...
Nxe4 {[%clk 0:01:51]} 20. Bxe5 {[%clk 0:01:17.9]} 20... Rxd1+ {[%clk 0:01:51]}
21. Rxd1 {[%clk 0:01:18.2]} 21... f6 {[%clk 0:01:51.3]} 22. Rd4 {[%clk
0:00:32.8]} 22... Rxc2 {[%clk 0:01:48.2]} 23. Bf4 {[%clk 0:00:32.3]} 23... Nc3
{[%clk 0:01:38.3]} 24. Kf1 {[%clk 0:00:31.2]} 24... axb5 {[%clk 0:01:32.6]} 25.
axb5 {[%clk 0:00:30.7]} 25... Nxb5 {[%clk 0:01:32.6]} 26. Rd8+ {[%clk
0:00:30.9]} 26... Kf7 {[%clk 0:01:32.3]} 27. Rd7+ {[%clk 0:00:31.5]} 27... Kg6
{[%clk 0:01:30.9]} 28. Rxb7 {[%clk 0:00:31.8]} 28... Nc3 {[%clk 0:01:14.6]} 29.
Rxb6 {[%clk 0:00:28.8]} 29... Nd5 {[%clk 0:01:14]} 30. Rc6 {[%clk 0:00:11.1]}
30... Rxc6 {[%clk 0:01:12.8]} 0-1

[Event "Late-Titled-Tuesday-Blitz-April-30-2024"]
[Site "Chess.com"]
[Date "2024.04.30"]
[Round "6"]
[White "Akhayan"]
[Black "albi1999"]
[Result "0-1"]
[WhiteElo "2482"]
[BlackElo "2654"]
[TimeControl "180+1"]
[EndTime "15:05:34 PDT"]
[Termination "albi1999 won by resignation"]

1. e4 {[%clk 0:03:00.9]} 1... c5 {[%clk 0:02:43]} 2. Nf3 {[%clk 0:03:00.7]} 2...
a6 {[%clk 0:02:42.2]} 3. c4 {[%clk 0:02:58.8]} 3... Nc6 {[%clk 0:02:42]} 4. d4
{[%clk 0:02:56.8]} 4... cxd4 {[%clk 0:02:42.9]} 5. Nxd4 {[%clk 0:02:57.1]} 5...
Nf6 {[%clk 0:02:40.6]} 6. Nc3 {[%clk 0:02:53.9]} 6... e5 {[%clk 0:02:40.5]} 7.
Nf5 {[%clk 0:02:52.4]} 7... d5 {[%clk 0:02:40.6]} 8. cxd5 {[%clk 0:02:50.3]}
8... Bxf5 {[%clk 0:02:37.5]} 9. exf5 {[%clk 0:02:45.1]} 9... Nd4 {[%clk
0:02:37.4]} 10. Bd3 {[%clk 0:02:43.2]} 10... Be7 {[%clk 0:02:33.9]} 11. O-O
{[%clk 0:02:41.1]} 11... O-O {[%clk 0:02:33.3]} 12. Be3 {[%clk 0:02:35.7]} 12...
Qd7 {[%clk 0:02:14.6]} 13. Bxd4 {[%clk 0:02:28.5]} 13... exd4 {[%clk 0:02:15.5]}
14. Ne2 {[%clk 0:02:24.1]} 14... Nxd5 {[%clk 0:02:14.9]} 15. Nxd4 {[%clk
0:02:13.6]} 15... Nf4 {[%clk 0:01:49]} 16. Bc4 {[%clk 0:01:33.6]} 16... Rac8
{[%clk 0:01:44.1]} 17. Rc1 {[%clk 0:00:54.9]} 17... Rfd8 {[%clk 0:00:51.5]} 18.
Bxf7+ {[%clk 0:00:28.6]} 18... Kxf7 {[%clk 0:00:50.1]} 19. Qb3+ {[%clk
0:00:28.7]} 19... Qd5 {[%clk 0:00:48.2]} 20. Qxd5+ {[%clk 0:00:06.8]} 20... Nxd5
{[%clk 0:00:49.1]} 0-1